Cogmind - Beta 10.2 @@@ ROGUE MODE // 2021.01.08 @ 18:31:04 Player: WayneKnight Result: Self-destructed Performance ------------- Evolutions (3) 1500 Regions Visited (9) 1800 Robots Destroyed (72) 360 Value Destroyed (2458) 2458 Prototype IDs (36) 720 Alien Tech Used (0) 0 Bonus (234) 234 TOTAL SCORE: 7072 Bonus ------- Follower Combat Kills 138 Aligned with FarCom 300 Friendly Fire -204 Cogmind --------- Core Integrity 406/700 Matter 247/300 Energy 100/100 System Corruption 12% Temperature Cool (0) Movement Core (800) Ox15 Location -7/Lower Caves Parts ------- > --- POWER (1) -------- (None) > --- PROPULSION (4) --- (None) > --- UTILITY (6) ------ Large Storage Unit Large Storage Unit Large Storage Unit > --- WEAPON (2) ------- (None) > --- INVENTORY (22) --- Improved Deuterium Engine Improved VTOL Module Large Storage Unit High-capacity Matter Pod (200) Long-range Sensor Array Makeshift Sensor Array Transmission Jammer Makeshift Cloaking Device System Shield System Backup Module High-powered Shotgun Flak Gun Flak Gun Advanced EMP Blaster Proton Missile Launcher Improved Datajack Ripper Greatsword Peak State ------------ > --- POWER ------------ Enhanced Nuclear Core > --- PROPULSION ------- Flying Fortress v7 > --- UTILITY ---------- Large Storage Unit Large Storage Unit Large Storage Unit Experimental Sensor Array Advanced Signal Interpreter System Backup Module > --- WEAPON ----------- Greatsword > --- INVENTORY -------- Improved Deuterium Engine Light Treads Light Treads Light Treads Large Storage Unit High-capacity Matter Pod Long-range Sensor Array Transmission Jammer Hardened Medium Armor Plating Hacking Suite High-powered Shotgun Gauss Rifle Flak Gun Flak Gun Advanced EMP Blaster Proton Missile Launcher Rocket Launcher Improved Datajack Greatsword Greatsword [Rating: 67] Favorites ----------- Power Enhanced Nuclear Core Engine Heavy Ion Engine Power Core Enhanced Nuclear Core Propulsion Light Treads Treads Light Treads Leg Aluminum Leg Wheel Wheel Hover Unit Hover Unit Flight Unit Nuclear Pulse Thruster Utility Large Storage Unit Device Transmission Jammer Storage Large Storage Unit Processor Advanced Signal Interpreter Hackware Hacking Suite Protection Hardened Medium Armor Plating Weapon Heavy EM Pulse Gun Energy Gun Heavy EM Pulse Gun Energy Cannon Advanced Beam Cannon Ballistic Gun Makeshift Shrapnel Gun Launcher EMP Blaster Impact Weapon Flail Slashing Weapon Greatsword Build | -11 -10 -10 -10 -9 -8 -8 -7 -7 -7 ------- Run | Scr Mat Min Exi Min Mat Sto Fac Low Low Slots Evolved 6 | . . . . . 4 . 2 . . Power . | . . . . . . . . . . Propulsion 2 | . . . . . 1 . 1 . . Utility 4 | . . . . . 3 . 1 . . Weapon . | . . . . . . . . . . Parts Attached 108 | . 17 8 3 . 12 21 33 1 13 Power 7 | . 2 1 . . 1 1 2 . . Engine 5 | . 2 1 . . 1 1 . . . Core 2 | . . . . . . . 2 . . Reactor . | . . . . . . . . . . Propulsion 25 | . 2 2 . . 4 6 4 1 6 Treads 15 | . 2 2 . . 4 4 3 . . Leg . | . . . . . . . . . . Wheel 1 | . . . . . . . . . 1 Hover 4 | . . . . . . 2 . . 2 Flight 5 | . . . . . . . 1 1 3 Utility 37 | . 5 . . . 4 1 22 . 5 Device 16 | . . . . . 1 1 12 . 2 Storage 5 | . 4 . . . 1 . . . . Processor 1 | . . . . . . . 1 . . Hackware 1 | . . . . . . . 1 . . Protection 14 | . 1 . . . 2 . 8 . 3 Artifact . | . . . . . . . . . . Weapon 39 | . 8 5 3 . 3 13 5 . 2 Energy Gun 12 | . 3 4 1 . . 3 1 . . Energy Cannon 1 | . . . . . . 1 . . . Ballistic Gun 15 | . 3 . 1 . 3 6 2 . . Ballistic Cannon . | . . . . . . . . . . Launcher 5 | . 2 1 . . . 1 . . 1 Special Weapon . | . . . . . . . . . . Impact Weapon 4 | . . . 1 . . 2 1 . . Slashing Weapon 2 | . . . . . . . 1 . 1 Piercing Weapon . | . . . . . . . . . . Special Melee Weapon . | . . . . . . . . . . Unidentified Prototypes 8 | . . . . . 1 6 1 . . Parts Lost 14 | . . 3 . . . . . . 11 Power 1 | . . . . . . . . . 1 Propulsion 6 | . . 1 . . . . . . 5 Utility 3 | . . . . . . . . . 3 Weapon 4 | . . 2 . . . . . . 2 Highest Loss Streak 6 | . . 2 . . . . . . 6 Average Slot Usage (%) 90 | . 98 100 84 100 88 99 79 69 83 Engine 7 | . 14 14 14 14 8 9 3 . . Core 1 | . . . . . . . 3 7 6 Treads 19 | . 27 28 28 28 26 26 10 . . Flight 3 | . . . . . . . 4 7 18 Device 4 | . . . . . . 7 10 7 6 Storage 25 | . 25 28 28 28 27 27 23 23 23 Processor 2 | . . . . . . . 7 7 6 Hackware 1 | . . . . . . . 2 7 3 Protection 3 | . 1 . . . 8 10 . . 3 Energy Gun 6 | . 22 19 6 14 2 . 1 . . Ballistic Gun 7 | . 5 . . 14 15 16 3 . . Slashing Weapon 2 | . . . . . . . 4 7 6 Naked Turns . | . . . . . . . . . . Heaviest Build 73 | 9 44 45 45 44 71 73 73 62 71 Greatest Support 82 | 20 40 40 40 40 62 62 82 72 72 Greatest Overweight (x) 21 | . 1 1 1 1 1 3 1 . 21 Average Overweight (x) . | . . 1 . 1 . 1 . . 3 Largest Inventory Capacity 22 | 6 16 16 16 16 22 22 22 22 22 Average Capacity 19 | 6 12 16 16 16 22 22 22 22 22 Most Carried 22 | 6 16 16 16 16 22 22 22 22 22 Average Carried 18 | 6 11 15 15 15 19 21 21 21 18 Final Capacity 22 | 6 16 16 16 16 22 22 22 22 22 Final Carried 22 | 6 16 16 16 16 22 22 22 22 19 Class Distribution -------------------- 65% | Hauler-Mutant 34% | Mutant Dominant Class ---------------- Mutant | -10/Materials Mutant | -10/Mines Mutant | -10/Exiles Mutant | -9/Mines Hauler-Mutant | -8/Materials Hauler-Mutant | -8/Storage Hauler-Mutant | -7/Factory Hauler-Mutant | -7/Lower Caves Hauler-Mutant | -7/Lower Caves Resources | -11 -10 -10 -10 -9 -8 -8 -7 -7 -7 ----------- Run | Scr Mat Min Exi Min Mat Sto Fac Low Low Matter Collected 1993 | 204 260 88 . 90 142 541 554 10 104 Remotely . | . . . . . . . . . . Salvage Created 2768 | 81 771 237 . 76 204 460 635 93 211 Parts 171 | 2 54 9 . 1 16 26 50 9 4 Haulers Intercepted 5 | . 2 . . . 1 2 . . . Recyclers Shooed 1 | . . . . . . 1 . . . Parts Field Recycled . | . . . . . . . . . . Retrieved Matter . | . . . . . . . . . . Parts Self-Destructed 4 | . . . . . . . . 1 3 Prevented . | . . . . . . . . . . Kills | -11 -10 -10 -10 -9 -8 -8 -7 -7 -7 ------- Run | Scr Mat Min Exi Min Mat Sto Fac Low Low Combat Hostiles Destroyed 53 | . 15 5 . 2 2 10 14 2 3 Melee 8 | . . . . . . . 3 2 3 Guns 38 | . 11 2 . 2 2 10 11 . . AOE 7 | . 4 3 . . . . . . . Classes Destroyed 14 | 1 6 1 . . 1 1 1 1 2 Builder 1 | . 1 . . . . . . . . Hauler 5 | . 2 . . . 1 2 . . . Recycler 1 | 1 . . . . . . . . . Minesweeper 2 | . . . . . . . . . 2 Operator 4 | . 2 . . . . . 2 . . Watcher 6 | . 2 . . . 2 1 1 . . Swarmer 10 | . 3 . . . . 4 3 . . Grunt 25 | . 12 4 . 2 . 3 2 . 2 Brawler 2 | . . . . . . 1 . . 1 Sentry 6 | . . 1 . . 1 2 2 . . Hunter 2 | . . . . . 1 . 1 . . Programmer 6 | . . . . . . . 6 . . Decomposer 2 | . . . . . . . . . 2 Master Thief 2 | . . . . . . . . 2 . Best Kill Streak 4 | 1 3 2 . 1 1 3 4 2 2 Combat Bots Only 4 | . 3 2 . 1 1 3 4 2 2 Max Kills in Single Turn 2 | 1 2 1 . 1 1 1 1 1 1 Gunslinging . | . . . . . . . . . . Exploded 2 | . 2 1 . . . . . . . Melee 1 | . . . . . . . 1 1 1 Uniques/NPCs Destroyed . | . . . . . . . . . . Combat | -11 -10 -10 -10 -9 -8 -8 -7 -7 -7 -------- Run | Scr Mat Min Exi Min Mat Sto Fac Low Low Damage Taken 3205 | . 424 176 . 28 94 260 827 6 1390 Core 439 | . 78 15 . 12 27 13 90 6 198 Absorbed by Shields . | . . . . . . . . . . Core Remaining (%) 83 | 100 . . . 58 . 92 . . . Volleys Fired 151 | 2 48 11 . 6 17 33 27 . 7 Largest 2 | 2 2 2 . 2 2 2 2 . 1 Hottest 90 | 40 90 90 . 69 69 69 89 . 33 Shots Fired 277 | 4 94 19 . 12 34 54 53 . 7 Gun 266 | 4 92 17 . 12 34 54 53 . . Cannon . | . . . . . . . . . . Launcher 11 | . 2 2 . . . . . . 7 Special . | . . . . . . . . . . Kinetic 168 | 4 43 . . 6 25 52 38 . . Thermal 15 | . . . . . . . 15 . . Explosive 7 | . . . . . . . . . 7 Electromagnetic 87 | . 51 19 . 6 9 2 . . . Robot Hit Streak 21 | 3 8 5 . 5 5 12 21 . . Robot Miss Streak 5 | . 4 1 . 3 3 5 5 . . Penetration Max 1 | . . . . . . . 1 . . Secondary Targets . | . . . . . . . . . . Shots Hit Robots 226 | 3 57 13 . 8 22 45 56 5 17 Core Hits 127 | 2 29 8 . 4 12 30 33 3 6 Critical Hits 1 | . . . . . . . 1 . . Critical Kills . | . . . . . . . . . . Critical Parts Destroyed 1 | . . . . . . . 1 . . Melee Attacks 104 | . . . . . . 8 55 11 30 Impact 11 | . . . . . . 8 3 . . Slashing 93 | . . . . . . . 52 11 30 Piercing . | . . . . . . . . . . Sneak Attacks 7 | . . . . . . . 1 . 6 Combat Hostiles 1 | . . . . . . . . . 1 Follow-up Attacks . | . . . . . . . . . . Damage Inflicted 6025 | 27 981 308 . 156 274 885 1637 363 1394 Guns 3169 | 27 807 129 . 156 274 871 905 . . Cannons . | . . . . . . . . . . Explosions 351 | . 172 179 . . . . . . . Melee 2479 | . . . . . . . 722 363 1394 Ramming 26 | . 2 . . . . 14 10 . . Kinetic 2009 | 27 264 . . 90 182 831 615 . . Thermal 502 | . 88 124 . . . . 290 . . Explosive . | . . . . . . . . . . Electromagnetic 1009 | . 627 184 . 66 92 40 . . . Impact . | . . . . . . . . . . Slashing 2479 | . . . . . . . 722 363 1394 Piercing . | . . . . . . . . . . Highest Corruption 12 | . 1 1 1 1 . . 3 1 12 Average Corruption 1 | . 1 1 1 1 . . 2 1 1 Corruption Purged 3 | . . . . . . . 3 . . Effects 52 | . 4 4 4 6 . . 20 . 14 Message Errors 16 | . 2 3 1 3 . . 3 . 4 Matter Fused 7 | . . . . . . . 7 . . Heat Flow Errors 5 | . . . . . . . 4 . 1 Energy Discharges 9 | . . 1 2 1 . . 2 . 3 Data Loss (minor) 13 | . 2 . 1 1 . . 3 . 6 Targeting Errors 1 | . . . . 1 . . . . . Weapon Failures 1 | . . . . . . . 1 . . Overload Shots . | . . . . . . . . . . Overflow Damage 734 | . 1 23 . . . . 233 . 477 Projectiles . | . . . . . . . . . . Explosions 24 | . 1 23 . . . . . . . Melee 710 | . . . . . . . 233 . 477 Knockbacks . | . . . . . . . . . . Impact . | . . . . . . . . . . Kinetic . | . . . . . . . . . . Secondary . | . . . . . . . . . . Self-Inflicted Damage 51 | . . 51 . . . . . . . Shots 2 | . . 2 . . . . . . . Rammed 4 | . 2 . . . . 1 1 . . Targets Rammed 4 | . 2 . . . . 1 1 . . Kicked . | . . . . . . . . . . Crushed . | . . . . . . . . . . Highest Temperature 264 | . 264 118 . 45 7 17 245 . 210 Average Temperature 50 | . 49 44 . 21 2 6 89 . 117 Received Heat Transfer 855 | . 207 57 . 15 18 72 117 . 369 Siege Activations . | . . . . . . . . . . Robots Corrupted . | . . . . . . . . . . Combat Hostiles . | . . . . . . . . . . Parts Fried . | . . . . . . . . . . Impact Corruptions . | . . . . . . . . . . Robots Melted . | . . . . . . . . . . Combat Hostiles . | . . . . . . . . . . Parts Melted 4 | . . . . . . . 4 . . Heat Transferred 718 | . 100 100 . . . . 518 . . Parts Sabotaged . | . . . . . . . . . . Parts Stolen 3 | . . . . . . . . 1 2 Parts Stripped . | . . . . . . . . . . Power Chain Reactions 3 | . 1 2 . . . . . . . Missiles Intercepted . | . . . . . . . . . . Alert | -11 -10 -10 -10 -9 -8 -8 -7 -7 -7 ------- Run | Scr Mat Min Exi Min Mat Sto Fac Low Low Peak Influence 272 | 5 149 65 . 35 106 180 272 . . Initial 77 | . 3 . . . . . 77 . . Average 53 | 2 48 18 . 14 32 50 93 . . Maximum Alert Level 1 | . . . . . . . 1 . . Low Security (%) 99 | 100 100 100 . 100 100 100 97 . . Level 1 . | . . . . . . . 2 . . Level 2 . | . . . . . . . . . . Level 3 . | . . . . . . . . . . Level 4 . | . . . . . . . . . . Level 5 . | . . . . . . . . . . High Security . | . . . . . . . . . . Max Security . | . . . . . . . . . . Squads Dispatched 18 | . 6 . . 1 . 1 9 . 1 Investigation 4 | . 3 . . 1 . . . . . Extermination 7 | . . . . . . . 7 . . Reinforcement 5 | . 3 . . . . 1 1 . . Assault 2 | . . . . . . . 1 . 1 Garrison . | . . . . . . . . . . Intercept . | . . . . . . . . . . Construction Impeded . | . . . . . . . . . . Haulers Reinforced . | . . . . . . . . . . Stealth | -11 -10 -10 -10 -9 -8 -8 -7 -7 -7 --------- Run | Scr Mat Min Exi Min Mat Sto Fac Low Low Distress Signals 4 | . 1 . . . 3 . . . . Communications Jammed . | . . . . . . . . . . Distress Signals . | . . . . . . . . . . Times Spotted 113 | . 26 5 . 3 8 18 32 4 17 Peak Tracking Total 6 | . 4 2 . 2 3 3 4 2 6 Tactical Retreats 12 | . . . . 1 . 1 4 1 5 Traps | -11 -10 -10 -10 -9 -8 -8 -7 -7 -7 ------- Run | Scr Mat Min Exi Min Mat Sto Fac Low Low Traps Triggered 8 | . 3 . . . . 2 3 . . Indirectly . | . . . . . . . . . . Trap Hack Attempts . | . . . . . . . . . . Triggered . | . . . . . . . . . . Disarmed . | . . . . . . . . . . Reprogrammed . | . . . . . . . . . . Reused . | . . . . . . . . . . Traps Extracted . | . . . . . . . . . . Installed . | . . . . . . . . . . Triggered . | . . . . . . . . . . Machines | -11 -10 -10 -10 -9 -8 -8 -7 -7 -7 ---------- Run | Scr Mat Min Exi Min Mat Sto Fac Low Low Machines Disabled 11 | . 1 1 . . . 5 3 1 . Max in Single Turn 1 | . 1 1 . . . 1 1 1 . Garrison Access 2 | . . . . . . . 2 . . Machines Sabotaged . | . . . . . . . . . . Garrisons Compromised . | . . . . . . . . . . Overloaded Fab Kills . | . . . . . . . . . . Fab Network Shutdowns . | . . . . . . . . . . Hacking | -11 -10 -10 -10 -9 -8 -8 -7 -7 -7 --------- Run | Scr Mat Min Exi Min Mat Sto Fac Low Low Machines Accessed 49 | . 7 . 2 1 6 5 26 1 1 Terminals 30 | . 4 . . . 5 4 17 . . Fabricators . | . . . . . . . . . . Repair Stations 4 | . 1 . . . 1 . 2 . . Recycling Units 6 | . 2 . . . . 1 3 . . Scanalyzers 2 | . . . . . . . 2 . . Garrison Access 2 | . . . . . . . 2 . . Total Hacks 133 | . 17 . 2 1 25 15 71 1 1 Successful 92 | . 10 . 2 1 19 11 47 1 1 Failed 41 | . 7 . . . 6 4 24 . . Catastrophic 3 | . 1 . . . . . 2 . . Database Lockouts . | . . . . . . . . . . Manual 56 | . 12 . 1 . 13 11 19 . . Terminals 95 | . 11 . . . 21 12 51 . . Fabricators . | . . . . . . . . . . Repair Stations 11 | . 3 . . . 4 . 4 . . Recycling Units 11 | . 3 . . . . 3 5 . . Scanalyzers 7 | . . . . . . . 7 . . Garrison Access 4 | . . . . . . . 4 . . Terminal Hacks 39 | . 1 . 2 1 8 4 21 1 1 Record 1 | . . . 1 . . . . . . Part Schematic 4 | . . . . . 1 . 3 . . Robot Analysis 4 | . 1 . . . 2 1 . . . Prototype ID Bank 2 | . . . . . . . 2 . . Open Door 4 | . . . . 1 . 1 . 1 1 Level Access Points 1 | . . . . . . . 1 . . Branch Access Points 2 | . . . . . . 1 1 . . Emergency Access Points 4 | . . . . . 1 . 3 . . Terminal Index 1 | . . . . . . . 1 . . Alert Level 4 | . . . . . 1 . 3 . . Unreport Threat 3 | . . . . . 1 . 2 . . Locate Traps 4 | . . . . . 1 1 2 . . Recall Extermination 1 | . . . . . . . 1 . . Registered Prototypes 1 | . . . . . . . 1 . . Zone Layout 2 | . . . . . 1 . 1 . . EX-Prototype ID Bank 1 | . . . 1 . . . . . . Fabricator Hacks . | . . . . . . . . . . Repair Station Hacks 9 | . 1 . . . 4 . 4 . . Scan Component 5 | . 1 . . . 2 . 2 . . Repair 4 | . . . . . 2 . 2 . . Recycling Unit Hacks 7 | . 2 . . . . 2 3 . . Report Inventory 7 | . 2 . . . . 2 3 . . Scanalyzer 6 | . . . . . . . 6 . . Insert Component 3 | . . . . . . . 3 . . Analyze 3 | . . . . . . . 3 . . Garrison Access Hacks 1 | . . . . . . . 1 . . Seal Access 1 | . . . . . . . 1 . . Unauthorized Hacks 29 | . 6 . . . 6 5 12 . . Terminals 26 | . 5 . . . 6 4 11 . . Track 4 | . 2 . . . 1 1 . . . Assimilate 2 | . . . . . . . 2 . . Botnet 19 | . 2 . . . 5 3 9 . . Operators 1 | . 1 . . . . . . . . Fabricators . | . . . . . . . . . . Repair Stations . | . . . . . . . . . . Recycling Units 3 | . 1 . . . . 1 1 . . Recyclers 3 | . 1 . . . . 1 1 . . Scanalyzers . | . . . . . . . . . . Garrison Access . | . . . . . . . . . . Data Cores Recovered 1 | . . . . . . . 1 . . Used . | . . . . . . . . . . Hacking Detections 37 | . 6 . . . 5 3 23 . . Full Trace Events 1 | . 1 . . . . . . . . Feedback Events 1 | . 1 . . . . . . . . Corruption 1 | . 1 . . . . . . . . Feedback Blocked . | . . . . . . . . . . Robot Schematics Acquired . | . . . . . . . . . . Robots Built . | . . . . . . . . . . Matter . | . . . . . . . . . . Time . | . . . . . . . . . . Total Robot Build Rating . | . . . . . . . . . . Part Schematics Acquired 7 | . . . . . 1 . 6 . . Parts Built . | . . . . . . . . . . Matter . | . . . . . . . . . . Time . | . . . . . . . . . . Total Part Build Rating . | . . . . . . . . . . Parts Repaired 4 | . . . . . 2 . 2 . . Time 157 | . . . . . 58 . 99 . . Parts Recycled . | . . . . . . . . . . Recycled Matter . | . . . . . . . . . . Retrieved Matter . | . . . . . . . . . . Retrieved Components . | . . . . . . . . . . Parts Scanalyzed 3 | . . . . . . . 3 . . Part Schematics Acquired 3 | . . . . . . . 3 . . Parts Damaged . | . . . . . . . . . . Bothacking | -11 -10 -10 -10 -9 -8 -8 -7 -7 -7 ------------ Run | Scr Mat Min Exi Min Mat Sto Fac Low Low Used RIF Installer . | . . . . . . . . . . Robots Hacked . | . . . . . . . . . . Non-combat . | . . . . . . . . . . Combat . | . . . . . . . . . . Robot Hacks Applied . | . . . . . . . . . . Relay Couplers Released 2 | . . . . . . . 2 . . Machine Destruction 2 | . . . . . . . 2 . . Robots Rewired . | . . . . . . . . . . Allies Hacked . | . . . . . . . . . . Hacks Repelled . | . . . . . . . . . . Allies | -11 -10 -10 -10 -9 -8 -8 -7 -7 -7 -------- Run | Scr Mat Min Exi Min Mat Sto Fac Low Low Total Allies 12 | . . 1 . 5 . 4 2 . . Largest Group 5 | . . 1 . 5 2 3 2 1 1 Highest-Rated Group 99 | . . 31 . 80 47 99 99 10 10 Highest-Rated Ally 99 | . . 31 . 31 31 99 99 10 10 Total Orders 2 | . . . . . . . 2 . . STAY 1 | . . . . . . . 1 . . FOLLOW 1 | . . . . . . . 1 . . Ally Attacks 29 | . . . . . 14 15 . . . Total Damage 448 | . . . . . 200 248 . . . Kills 5 | . . . . . 3 2 . . . Allies Corrupted . | . . . . . . . . . . Allies Melted . | . . . . . . . . . . Intel | -11 -10 -10 -10 -9 -8 -8 -7 -7 -7 ------- Run | Scr Mat Min Exi Min Mat Sto Fac Low Low Robot Analysis Total 4 | . 1 . . . 2 1 . . . Derelict Logs Recovered 6 | . . 1 . 2 . . . 1 2 Drone Launches . | . . . . . . . . . . Drone Recoveries . | . . . . . . . . . . Exploration | -11 -10 -10 -10 -9 -8 -8 -7 -7 -7 ------------- Run | Scr Mat Min Exi Min Mat Sto Fac Low Low Turns Passed 18661 | 7 3120 1191 591 1555 1262 3755 3974 390 2816 Spaces Moved 9788 | 2 936 620 346 720 576 840 4042 650 1056 Core 2 | . . . . . . . . . 2 Treads 4678 | . 936 620 346 720 576 840 640 . . Legs 2 | 2 . . . . . . . . . Wheels 69 | . . . . . . . . . 69 Hover 156 | . . . . . . . . . 156 Flight 4881 | . . . . . . . 3402 650 829 Fastest Speed 50 | 120 160 180 160 180 160 172 50 50 50 Average Speed 128 | 120 167 180 168 180 176 175 66 50 232 Slowest Speed 1100 | 120 180 180 180 180 180 220 175 50 1100 Overloaded Moves . | . . . . . . . . . . Propulsion Burnouts . | . . . . . . . . . . Robots Hopped 10 | . . . . . . . 10 . . Cave-ins Triggered 1 | . . . . . . . . . 1 Exploration Rate (%) 68 | 2 95 99 70 100 40 70 83 70 54 Regions Visited 9 Branch Regions 6 Pre-discovered Areas 5 | . . 1 1 2 . . . . 1 Known Exits Taken 3 | . . . . . 1 . 1 1 . Unknown Exits Taken 6 | 1 1 1 1 1 . 1 . . . Scrap Searched 5 | . . 1 . 2 . . . 2 . Spaces Dug 53 | . . . . . . . 36 2 15 Terrain Destroyed 138 | . 6 12 . . . . 36 2 82 Melee 44 | . . . . . . . 36 2 6 Projectile . | . . . . . . . . . . AOE 94 | . 6 12 . . . . . . 76 Terrain Rammed . | . . . . . . . . . . Walls Destroyed . | . . . . . . . . . . Machines Disabled . | . . . . . . . . . . Actions | -11 -10 -10 -10 -9 -8 -8 -7 -7 -7 --------- Run | Scr Mat Min Exi Min Mat Sto Fac Low Low Total 15446 | 3 2400 677 358 969 794 3066 5139 692 1348 Wait 5163 | . 1370 32 . 238 170 2136 954 26 237 Move 9758 | 1 935 619 345 719 575 839 4021 649 1055 Hop 10 | . . . . . . . 10 . . Pick Up 63 | . 14 4 3 3 11 8 15 3 2 Fast Attach 31 | . 5 . . . 4 13 5 1 3 Attach 21 | . . 3 2 . 4 1 4 . 7 Detach 9 | . . . 1 . 2 1 2 . 3 Swap 56 | . 12 5 1 . 4 7 24 . 3 Drop 75 | . 14 3 6 3 7 19 21 2 . Fire 151 | 2 48 11 . 6 17 33 27 . 7 Melee 104 | . . . . . . 8 55 11 30 Ram . | . . . . . . . . . . Kick . | . . . . . . . . . . Crush 4 | . 2 . . . . 1 1 . . Escape Stasis 1 | . . . . . . . . . 1 Rewire . | . . . . . . . . . . Trap . | . . . . . . . . . . Miscellaneous . | . . . . . . . . . . Route ------- -11/Scrapyard -10/Materials (discovered 4 exits: [*Mat x3] / [*Min]) -10/Mines (discovered 3 exits: [*Mat x2] / *Exi) -10/Exiles -9/Mines (discovered 2 exits: *Mat x2) -8/Materials (discovered 3 exits: *Fac / *Sto x2) -8/Storage (discovered 2 exits: *Fac / Rec) -7/Factory (discovered 6 exits: *Fac x4 / *Low x2) -7/Lower Caves -7/Lower Caves (discovered 1 exit: *Fac) History --------- Turn | Location | Event 7 | -11/Scrapyard | Discovered new exit (range 1) 8 | -11/Scrapyard | Entered Materials 75 | -10/Materials | Discovered new exit (range 15) 318 | -10/Materials | Build established: Mutant 703 | -10/Materials | Discovered new exit (range 16) 898 | -10/Materials | Discovered new exit (range 3) 1419 | -10/Materials | Discovered new exit (range 4) 3128 | -10/Materials | Entered Mines 3297 | -10/Mines | A weapon hastily lodged in a ceiling crevice suddenly fell to the ground 3484 | -10/Mines | Joined a pair of Derelicts in attacking an 0b10 outpost 3700 | -10/Mines | Discovered new exit (range 10) 3713 | -10/Mines | Discovered new exit (range 11) 3714 | -10/Mines | Received a Mining Laser from a helpful Derelict 3905 | -10/Mines | Learned location of Recycling (-8) 4060 | -10/Mines | Deemed a non-threat by the Exiles lab entrance 4060 | -10/Mines | Discovered new exit (range 5) 4098 | -10/Mines | Received a Rocket Launcher from a helpful Derelict 4319 | -10/Mines | Entered Exiles 4361 | -10/Exiles | Met 8R-AWN 4393 | -10/Exiles | Met EX-HEX 4499 | -10/Exiles | Met EX-DEC 4529 | -10/Exiles | Learned location of Zion (-6) 4647 | -10/Exiles | Met EX-BIN 4667 | -10/Exiles | Aligned with FarCom system 4668 | -10/Exiles | Given EX-Vault access code 4707 | -10/Exiles | Opened EX-Vault 4721 | -10/Exiles | Found Flying Fortress v7 4733 | -10/Exiles | Found 0b10 Alert Chip 4772 | -10/Exiles | Warned to stay clear of 0b10 Research branches 4885 | -10/Exiles | Discovered new exit (range 14) 4910 | -10/Exiles | Stole two prototypes: Flying Fortress v7, 0b10 Alert Chip 4910 | -10/Exiles | Entered Mines 5100 | -9/Mines | Learned location of Storage (-8) 5206 | -9/Mines | Discovered new exit (range 3) 5558 | -9/Mines | Discovered new exit (range 5) 5818 | -9/Mines | Assisted by bots powering up and referring to "LRC-V3" 5897 | -9/Mines | Met a Derelict shopkeep closing up shop 6176 | -9/Mines | Found a damaged Exp. Sensor Array with a note attached 6180 | -9/Mines | Found Prototype Device 6465 | -9/Mines | Entered Materials 6465 | -8/Materials | Accompanied by 2 allies 6465 | -8/Materials | Evolved 4 slots: Propulsion x1, Utility x3 6466 | -8/Materials | Identified exit to Storage 6470 | -8/Materials | Led the pair of lost Derelicts to an unsafe place 6752 | -8/Materials | Build established: Hauler-Mutant 6997 | -8/Materials | Repaired Lgt. Treads 7030 | -8/Materials | Repaired Imp. Ion Engine 7139 | -8/Materials | Discovered new exit (range 16) 7214 | -8/Materials | Identified Exp. Sensor Array 7350 | -8/Materials | Discovered exit to Storage (range 6) 7727 | -8/Materials | Entered Storage 7780 | -8/Storage | Allied Derelicts emerged from ambush trap array 11400 | -8/Storage | Identified exit to Recycling 11431 | -8/Storage | Met 01-MTF 11452 | -8/Storage | Discovered new exit (range 8) 11482 | -8/Storage | Entered Factory 11482 | -7/Factory | Accompanied by 1 ally (01-MTF) 11482 | -7/Factory | Evolved 2 slots: Propulsion x1, Utility x1 11484 | -7/Factory | FarCom data flow suspended 11487 | -7/Factory | 01-MTF left 11793 | -7/Factory | Discovered new exit (range 7) 11822 | -7/Factory | Identified exit to Factory 13100 | -7/Factory | Discovered exit to Factory (range 14) 13237 | -7/Factory | Discovered exit to Factory (range 3) 13887 | -7/Factory | Discovered new exit (range 5) 13889 | -7/Factory | Identified exit to Lower Caves 14555 | -7/Factory | Discovered exit to Lower Caves (range 15) 14614 | -7/Factory | Repaired Exp. Sensor Array? 14746 | -7/Factory | Discovered exit to Factory (range 10) 14779 | -7/Factory | Repaired Hrd. Medium Armor Plating 15456 | -7/Factory | Entered Lower Caves 15456 | -7/Lower Caves | Accompanied by 1 ally 15456 | -7/Lower Caves | Spotted NP-PZ6(f) 15456 | -7/Lower Caves | Destroyed NP-PZ6(f) 15460 | -7/Lower Caves | Spotted VU-188(f) 15461 | -7/Lower Caves | Encountered a Master Thief 15475 | -7/Lower Caves | Flying Fortress v7 stolen by Master Thief 15476 | -7/Lower Caves | Destroyed VU-188(f) 15565 | -7/Lower Caves | Learned Factory garrison access intel 15814 | -7/Lower Caves | Discovered new exit (range 6) 15817 | -7/Lower Caves | Identified exit to Lower Caves 15846 | -7/Lower Caves | Entered another Lower Caves area 15846 | -7/Lower Caves | Accompanied by 1 ally 15846 | -7/Lower Caves | Spotted K4-Q6K(f) 15847 | -7/Lower Caves | Encountered a Master Thief 15854 | -7/Lower Caves | Spotted BH-TZ7(f) 15855 | -7/Lower Caves | Encountered a Master Thief 15858 | -7/Lower Caves | Flying Fortress v7 stolen by Master Thief 15859 | -7/Lower Caves | Exp. Sensor Array stolen by Master Thief 15959 | -7/Lower Caves | Discovered exit to Factory (range 9) 16958 | -7/Lower Caves | Spotted B-75 Beast 17037 | -7/Lower Caves | Learned location of 1 exit from Factory 18614 | -7/Lower Caves | Crushed by falling debris 18615 | -7/Lower Caves | System corruption reached 10% 18642 | -7/Lower Caves | Attracted the attention of an 0b10 outpost 18645 | -7/Lower Caves | Lost 3 parts (1n1u1w) 18655 | -7/Lower Caves | Learned location of Extension (-5) 18662 | -7/Lower Caves | Self-destructed Last Messages --------------- 18614_ Rocket Launcher destroyed. 18614_ System corrupted by crushing effect (+5). 18614_ Wheel destroyed. 18614_ System corrupted by crushing effect (+4). 18619_ The unstable cave ceiling collapses. 18642_ Y-64 Sentinel: "DETECTED UNIDENTIFIED DERELICT." 18646_ Y-64 Sentinel: "REQUESTING BACKUP." 18647_ Hrd. Medium Armor Plating destroyed. 18649_ System corrupted: Heat flow error (+223). 18649_ Penetrated by Slug. 18652_ Enh. Nuclear Core destroyed. 18653_ Penetrated by Slug. 18655_ Imp. Propulsion Shielding destroyed. 18655_ Acquired derelict log, extracted data. World map updated: -5/Extension. 18656_ Slug penetrates S-27 Virus. 18656_ S-27 Virus destroyed. 18657_ Hover Unit destroyed. 18658_ Nuclear Pulse Thruster destroyed. 18660_ Hover Unit destroyed. Map ----- +----------------------------------------------------+ | ?????????????????????????????????????????????????? | | ?????????????????????????????????????????????????? | | ?????????????????????????????????????????????????? | | ?????????????????????????????????????????????????? | | ?????????????????????????????????????????????????? | | ?????????????????????????????????????????????????? | | ?????????????????????????????????????????????????? | | ?????????????????????????????????????????????????? | | ?????????????????????????????????????????????????? | | ?????????????????????????????????????????????????? | | ?????????????????????????????????????????????????? | | ?????????????????????????????????????????????????? | | ?????????????????????????????????????????????????? | | ?????????????????????????????????????????????????? | | ?????????????????????????????????????????????????? | | ?????????????????????????????????????????????????? | | ??????????????????#??????????????????????????????? | | ?????????????????## ?????????????????????????????? | | ???????????? ????# ????????????????????????????? | | ???????????? ### ###?????????????????????????? | | ????????????? #????????????????????????? | | ??????????????? ##??????????????????????? | | ?????????????????# #??????????????????????? | | ??????????????????# ##?????????????????????? | | ?????????????????## #?????????????????????? | | ?????????????????# @ #?????????????????????? | | ?????????????????# ## #?????????????????????? | | ?????????????????# ?????# ##????????????????????? | | ????????????????????????# #????###?????????????? | | ????????????????????????# #???## #######???????? | | ???????????????????????##sY ##### # ###?????? | | ???????????????????????#= % # # # ##????? | | ?????????????????###???#% l # # ###??? | | ?????????????????# #### # # #??? | | ????????????###### % g # ## %#??? | | ???####?????# # ### ### ## ## # #??? | | #### #????## #" ??# %## ## #% ##??? | | #??### ### #" ??# # % ######### #???# | | ### #??# ##?## #" # ##% ##????### ##?## | | ??# #### #???## #" ## ## #???##%#X# ### | | ??# ## #???## #"?? # #% ##??# %#### % | | ??## #???# #??""""# #### % | | ???## ##???# ######## % # | | ##### ###### ## % ### | | ### ####### #?# #### #?? | | ###/ #?????###?## ##??# % #?? | | % ###?####?## ##??# #?? | | ### ## #### %### %### % ##?## % #?? | | #?## ### ##?## % % #??## #?? | | #??## #?####### #???## % #? | +----------------------------------------------------+ Best States ------------- Heat Dissipation 34 Energy Generation 17 Energy Capacity 300 Matter Stores 300 Matter Capacity 300 Sight Range 16 Robot Scan Range 30 Terrain Scan Density 10 Jamming Range 8 Armor Coverage 375 Power Shielding 33 Propulsion Shielding 66 Evasion (%) 60 Recoil Reduction 4 Offensive Hacking 10 Item Schematics ----------------- Adv. Signal Interpreter | -8/Materials | Hacked Fission Core | -7/Factory | Hacked Greatsword | -7/Factory | Scanalyzed Lrn. Sensor Array | -7/Factory | Scanalyzed Hyp. Coil Gun | -7/Factory | Hacked Phase Cannon | -7/Factory | Hacked Imp. VTOL Module | -7/Factory | Scanalyzed Robot Schematics ------------------ None Fabricated ------------ Nothing Alien Tech Used ----------------- None Achievements -------------- None Challenges ------------ None Game ------ Seed ChargeHellfireProtomatter Manual? 0 Play Time 01:29:50 Cumulative 164.8 hours Start 2021.01.08 @ 16:57:52 End 2021.01.08 @ 18:31:04 Sessions 3 Manual Loads 0 Difficulty Rogue Special Mode None Game No. 120 Rogue 120 Adventurer 0 Explorer 0 Win Type - Total 3 Types 3/0/0/0/0/0/0/0/0 Lore% 44 Gallery% 59 Achievement% 44 Wizard Run 0 Options --------- ASCII 1 Keyboard 1 Movement Arrows Keybinds 0 Fullscreen 1 Font 24/Proggy Map View 76x50 Tactical HUD 1 Map Filters NONE Filters NONE Steam 1 RUN: 188becb5-8b7d-411c-9006-fab22a53f313